Cogmind - Beta 15 @@@ ROGUE MODE // 2025.09.13 @ 22:42:05 Player: McSaucyNugget Result: Destroyed by D-53 Grenadier with Mini Grenade Launcher Performance ------------- Evolutions (0) 0 Regions Visited (2) 400 Robots Destroyed (22) 110 Value Destroyed (492) 492 Prototype IDs (0) 0 Alien Tech Used (0) 0 Bonus (0) 0 TOTAL SCORE: 1002 Bonus ------- None Cogmind --------- Core Integrity 0/250 Matter 204/300 Energy 70/100 System Corruption 0% Temperature Cool (0) Movement Treading (160) Location -10/Mines Parts ------- > --- POWER (1) -------- (None) > --- PROPULSION (2) --- Light Treads Light Treads > --- UTILITY (2) ------ High-capacity Storage Unit > --- WEAPON (2) ------- (None) > --- INVENTORY (20) --- Light Ion Engine Light Ion Engine Light Treads Light Treads Light Treads Light Treads Light Treads Sensor Array Seismic Detector Seismic Detector Small Laser Particle Gun Light Assault Rifle Light Assault Rifle Grenade Launcher Mining Laser Peak State ------------ > --- POWER ------------ Light Nuclear Core > --- PROPULSION ------- Light Treads Light Treads > --- UTILITY ---------- High-capacity Storage Unit Targeting Computer > --- WEAPON ----------- Assault Rifle Light Assault Rifle > --- INVENTORY -------- Light Ion Engine Light Ion Engine Light Treads Light Treads Light Treads Light Treads Light Treads Light Treads Light Treads Seismic Detector Small Laser Particle Gun Grenade Launcher Mining Laser [Rating: 10] Favorites ----------- Power Light Ion Engine Engine Light Ion Engine Power Core Light Nuclear Core Propulsion Light Treads Treads Light Treads Utility High-capacity Storage Unit Device Sensor Array Storage High-capacity Storage Unit Processor Targeting Computer Protection Light Armor Plating Weapon Assault Rifle Ballistic Gun Assault Rifle Launcher Grenade Launcher Build | -11 -10 -10 ------- Run | Yrd Mat Min Slots Evolved . | . . . Power . | . . . Propulsion . | . . . Utility . | . . . Weapon . | . . . Parts Attached 13 | 5 4 4 Power 2 | 1 1 . Engine 1 | 1 . . Core 1 | . 1 . Reactor . | . . . Propulsion 4 | 2 . 2 Treads 4 | 2 . 2 Leg . | . . . Wheel . | . . . Hover . | . . . Flight . | . . . Utility 4 | . 2 2 Device 1 | . . 1 Storage 1 | . 1 . Processor 1 | . 1 . Hackware . | . . . Protection 1 | . . 1 Artifact . | . . . Weapon 3 | 2 1 . Energy Gun . | . . . Energy Cannon . | . . . Ballistic Gun 2 | 2 . . Ballistic Cannon . | . . . Launcher 1 | . 1 . Special Weapon . | . . . Impact Weapon . | . . . Slashing Weapon . | . . . Piercing Weapon . | . . . Special Melee Weapon . | . . . Unidentified Prototypes . | . . . Parts Lost 6 | . . 6 Power 1 | . . 1 Propulsion 2 | . . 2 Utility 1 | . . 1 Weapon 2 | . . 2 Highest Loss Streak 6 | . . 6 To Critical Strikes . | . . . Average Backups 11 | . 10 18 Power 1 | . 1 2 Propulsion 5 | . 5 7 Utility 1 | . 1 3 Weapon 3 | . 3 6 Tool/Special . | . . . Unused Backups 13 | . . 13 Power 1 | . . 1 Propulsion 5 | . . 5 Utility 2 | . . 2 Weapon 5 | . . 5 Tool/Special . | . . . Average Slot Usage (%) 89 | . 88 100 Engine 7 | . 8 . Core 6 | . 5 14 Treads 28 | . 28 28 Storage 12 | . 11 14 Processor 6 | . 5 12 Ballistic Gun 27 | . 27 27 Peak Build Rating 10 | 5 10 10 Average Rating 7 | 3 7 9 On Entrance 5 | . 5 10 Naked Turns . | . . . Heaviest Build 51 | 6 50 51 Greatest Support 40 | 40 40 40 Greatest Overweight (x) 1 | . 1 1 Average Overweight (x) . | . . 1 Largest Inventory Capacity 20 | 5 20 20 Average Capacity 17 | 5 17 20 Most Carried 18 | 2 18 18 Average Carried 11 | . 11 17 Final Capacity 20 | 5 20 20 Final Carried 18 | 2 18 16 Class Distribution -------------------- 100% | Mutant Dominant Class ---------------- Mutant | -10/Materials Mutant | -10/Mines Resources | -11 -10 -10 ----------- Run | Yrd Mat Min Matter Collected 536 | 126 350 60 Remotely . | . . . Salvage Created 676 | . 669 7 Parts 36 | . 34 2 Haulers Intercepted 2 | . 2 . Recyclers Shooed 1 | . 1 . Parts Field Recycled . | . . . Retrieved Matter . | . . . Parts Self-Destructed . | . . . Prevented . | . . . Kills | -11 -10 -10 ------- Run | Yrd Mat Min Combat Hostiles Destroyed 17 | . 14 3 Guns 12 | . 12 . AOE 5 | . 2 3 Classes Destroyed 5 | . 5 . Worker 2 | . 2 . Hauler 2 | . 2 . Recycler 1 | . 1 . Swarmer 6 | . 3 3 Grunt 11 | . 11 . Best Kill Streak 3 | . 3 3 Combat Bots Only 3 | . 3 3 Max Kills in Single Turn 2 | . 2 2 Gunslinging 1 | . 1 . Exploded 2 | . 1 2 Melee . | . . . Uniques/NPCs Destroyed . | . . . Combat | -11 -10 -10 -------- Run | Yrd Mat Min Hostile Shots Fired 83 | . 74 9 Missed 18 | . 15 3 Hits 65 | . 59 6 Projectile 65 | . 59 6 AOE 7 | . . 7 Critical Strikes 1 | . 1 . Damage Taken 968 | . 667 301 Core 285 | . 146 139 Absorbed by Shields . | . . . Core Remaining (%) 100 | 100 . . Volleys Fired 68 | 1 62 5 Largest 2 | 2 2 2 Hottest 40 | 40 40 40 Shots Fired 131 | 2 121 8 Gun 126 | 2 118 6 Cannon . | . . . Launcher 5 | . 3 2 Special . | . . . Kinetic 126 | 2 118 6 Thermal . | . . . Explosive 5 | . 3 2 Electromagnetic . | . . . Robot Hit Streak 16 | 1 16 3 Robot Miss Streak 2 | 1 2 1 Penetration Max . | . . . Secondary Targets 1 | . 1 . Max Gunslinging Chain 1 | . 1 . Shots Hit Robots 84 | 1 80 3 Core Hits 41 | . 38 3 Critical Kills 1 | . 1 . Critical Parts Destroyed . | . . . Critical Strikes 1 | . 1 . Destroy 1 | . 1 . Melee Attacks . | . . . Impact . | . . . Slashing . | . . . Piercing . | . . . Sneak Attacks . | . . . Combat Hostiles . | . . . Follow-up Attacks . | . . . Damage Inflicted 1100 | 14 934 152 Guns 877 | 14 836 27 Cannons . | . . . Explosions 223 | . 98 125 Melee . | . . . Ramming . | . . . Kinetic 877 | 14 836 27 Thermal . | . . . Explosive 223 | . 98 125 Electromagnetic . | . . . Impact . | . . . Slashing . | . . . Piercing . | . . . Highest Corruption . | . . . Average Corruption . | . . . Corruption Purged . | . . . Corruption Blocked . | . . . Overload Shots . | . . . Overflow Damage . | . . . Projectiles . | . . . Explosions . | . . . Melee . | . . . Knockbacks . | . . . Impact . | . . . Kinetic . | . . . Secondary . | . . . Self-Inflicted Damage . | . . . Shots . | . . . Rammed . | . . . Targets Rammed . | . . . Kicked . | . . . Crushed . | . . . Highest Temperature 27 | . 27 8 Average Temperature 7 | . 7 5 Received Heat Transfer 333 | . 333 . Siege Activations . | . . . Martial Activations . | . . . Shielding Activations . | . . . Robots Disrupted . | . . . Combat Hostiles . | . . . Robots Corrupted . | . . . Combat Hostiles . | . . . Parts Fried . | . . . Impact Corruptions . | . . . Robots Melted . | . . . Combat Hostiles . | . . . Parts Melted . | . . . Heat Transferred . | . . . Parts Sabotaged . | . . . Parts Stolen . | . . . Parts Stripped . | . . . Power Chain Reactions . | . . . Alert | -11 -10 -10 ------- Run | Yrd Mat Min Maximum Alert Level . | . . . Low Security (%) 100 | 100 100 100 Level 1 . | . . . Level 2 . | . . . Level 3 . | . . . Level 4 . | . . . Level 5 . | . . . High Security . | . . . Max Security . | . . . Peak Influence 173 | . 173 157 Initial 64 | . . 64 Average 71 | . 70 104 Influence Increases 599 | . 500 99 Destroy 0b10 Robot/C 340 | . 280 60 Destroy 0b10 Robot/NC 25 | . 25 . Destroy Leader 84 | . 74 10 Successful Hack 24 | . 18 6 Select Force Hacks 60 | . 60 . Disable Machine 30 | . 15 15 Destroy Structure 21 | . 13 8 Lose Combat Pursuer 15 | . 15 . Influence Decreases 599 | . 335 264 Entered New Map 101 | . . 101 Time Decay 455 | . 335 120 Lost Part 43 | . . 43 Squads Dispatched 4 | . 4 . Investigation 3 | . 3 . Extermination . | . . . Reinforcement 1 | . 1 . Assault . | . . . Garrison . | . . . Intercept . | . . . Searches Triggered . | . . . Construction Impeded . | . . . Haulers Reinforced . | . . . Active Scanning Responses . | . . . Cargo Convoy Interrupts . | . . . Stealth | -11 -10 -10 --------- Run | Yrd Mat Min Distress Signals 1 | . 1 . Communications Jammed . | . . . Distress Signals . | . . . Times Spotted 25 | . 21 4 Peak Tracking Total 5 | . 5 2 Tactical Retreats 1 | . 1 . Traps | -11 -10 -10 ------- Run | Yrd Mat Min Traps Triggered 1 | . 1 . Indirectly . | . . . Trap Hack Attempts . | . . . Triggered . | . . . Disarmed . | . . . Reprogrammed . | . . . Reused . | . . . Traps Extracted . | . . . Installed . | . . . Triggered . | . . . Machines | -11 -10 -10 ---------- Run | Yrd Mat Min Machines Disabled 2 | . 1 1 Max in Single Turn 1 | . 1 1 Machines Repaired . | . . . Machines Dismantled . | . . . Machines Sabotaged . | . . . Overloaded Fab Kills . | . . . Hacking | -11 -10 -10 --------- Run | Yrd Mat Min Machines Accessed 9 | . 8 1 Terminals 7 | . 6 1 Fabricators . | . . . Repair Stations . | . . . Recycling Units 2 | . 2 . Scanalyzers . | . . . Garrison Access . | . . . Total Hacks 25 | . 22 3 Successful 13 | . 11 2 Failed 12 | . 11 1 Catastrophic . | . . . Database Lockouts . | . . . Manual 26 | . 22 4 Terminals 21 | . 18 3 Fabricators . | . . . Repair Stations . | . . . Recycling Units 4 | . 4 . Scanalyzers . | . . . Garrison Access . | . . . Terminal Hacks 4 | . 2 2 Part Schematic 2 | . 2 . Robot Analysis 2 | . . 2 Fabricator Hacks . | . . . Repair Station Hacks . | . . . Recycling Unit Hacks . | . . . Scanalyzer . | . . . Garrison Access Hacks . | . . . Unauthorized Hacks 9 | . 9 . Terminals 7 | . 7 . Botnet 2 | . 2 . Skim 5 | . 5 . Fabricators . | . . . Repair Stations . | . . . Recycling Units 2 | . 2 . Tunnel 2 | . 2 . Scanalyzers . | . . . Garrison Access . | . . . Data Cores Recovered . | . . . Used . | . . . Hacking Detections 7 | . 6 1 Full Trace Events . | . . . Feedback Events . | . . . Feedback Blocked . | . . . Robot Schematics Acquired . | . . . Robots Built . | . . . Authchips . | . . . Time . | . . . Total Robot Build Rating . | . . . Part Schematics Acquired 2 | . 2 . Parts Built . | . . . Authchips . | . . . Time . | . . . Total Part Build Rating . | . . . Parts Repaired . | . . . Time . | . . . Parts Recycled . | . . . Recycled Matter . | . . . Retrieved Matter . | . . . Retrieved Components . | . . . Parts Scanalyzed . | . . . Part Schematics Acquired . | . . . Parts Damaged . | . . . Bothacking | -11 -10 -10 ------------ Run | Yrd Mat Min Used RIF Installer . | . . . Robots Hacked . | . . . Non-combat . | . . . Combat . | . . . Robot Hacks Applied . | . . . Relay Couplers Released . | . . . Fabnet Peak Effective % . | . . . Robots Rewired . | . . . Allies Hacked . | . . . Hacks Repelled . | . . . Allies | -11 -10 -10 -------- Run | Yrd Mat Min Total Allies . | . . . Largest Group . | . . . Highest-Rated Group . | . . . Highest-Rated Ally . | . . . Total Orders . | . . . Ally Attacks . | . . . Total Damage . | . . . Kills . | . . . Allies Corrupted . | . . . Allies Melted . | . . . Intel | -11 -10 -10 ------- Run | Yrd Mat Min Active Infowar (turns) 4 | . . 4 Sensors 4 | . . 4 Robot Analysis Total 2 | . . 2 Derelict Logs Recovered 1 | . . 1 Drone Launches . | . . . Drone Recoveries . | . . . Exploration | -11 -10 -10 ------------- Run | Yrd Mat Min Turns Passed 1768 | 85 1438 245 Spaces Moved 694 | 48 552 94 Core 3 | 3 . . Treads 691 | 45 552 94 Legs . | . . . Wheels . | . . . Hover . | . . . Flight . | . . . Fastest Speed 50 | 50 160 240 Average Speed 218 | 153 220 240 Slowest Speed 240 | 160 240 240 Overloaded Moves . | . . . Propulsion Burnouts . | . . . Robots Hopped . | . . . Potential Cave-ins . | . . . Cave-ins Triggered . | . . . Exploration Rate (%) 43 | 4 95 31 Regions Visited 2 Branch Regions 1 Pre-discovered Areas 2 | . 2 . Known Exits Taken . | . . . Unknown Exits Taken 2 | 1 1 . Scrap Searched 1 | . . 1 Spaces Dug . | . . . Terrain Destroyed 21 | . 10 11 Melee . | . . . Projectile . | . . . AOE 21 | . 10 11 Terrain Rammed . | . . . Walls Destroyed . | . . . Machines Disabled . | . . . Actions | -11 -10 -10 --------- Run | Yrd Mat Min Total 820 | 55 660 105 Wait 26 | . 26 . Move 692 | 47 551 94 Hop . | . . . Pick Up 17 | 2 15 . Fast Attach 8 | 5 2 1 Attach 2 | . . 2 Detach 1 | . . 1 Swap 6 | . 4 2 Drop . | . . . Fire 68 | 1 62 5 Melee . | . . . Ram . | . . . Kick . | . . . Crush . | . . . Escape Stasis . | . . . Rewire . | . . . Trap . | . . . Miscellaneous . | . . . Route ------- -11/Scrapyard -10/Materials (discovered 4 exits: [*Mat x3] / *Min) -10/Mines (discovered 1 exit: [*Mat]) History --------- Turn | Location | Event 8 | -11/Scrapyard | Discovered new exit (range 16) 86 | -11/Scrapyard | Entered Materials 321 | -10/Materials | Discovered new exit (range 13) 329 | -10/Materials | Build established: Mutant 472 | -10/Materials | Discovered new exit (range 16) 790 | -10/Materials | Discovered new exit (range 11) 1144 | -10/Materials | Discovered new exit (range 6) 1274 | -10/Materials | Core integrity fell below 50% 1524 | -10/Materials | Entered Mines 1612 | -10/Mines | Discovered new exit (range 5) 1663 | -10/Mines | Learned Materials emergency access door positions 1736 | -10/Mines | Assembled infested the area 1741 | -10/Mines | Assisted by a Guerilla fighting off Assembled 1769 | -10/Mines | Core integrity fell below 20% 1769 | -10/Mines | Destroyed by D-53 Grenadier with Mini Grenade Launcher Last Messages --------------- 01732_ Found 57 Matter. 01733_ Acquired 57 matter. 01736_ ALERT: Infestation in the mines, dispatching Demolisher response squad. 01740_ Discarded Targeting Computer. 01740_ Acquired Sensor Array. 01741_ A derelict emerges from the shadows: "You need to get out of here! I've been tracking a group of Assembled to figure out where they're coming from, and they're closing on this area, come on!" 01744_ K-01 Serf collects debris. 01763_ C-30 ARC bursts open, deploying its payload. 01763_ D-53 Grenadier unfolds itself. 01764_ R-06 Scavenger destroyed. 01765_ T-07 Excavator destroyed. 01766_ Lgt. Assault Rifle destroyed. 01766_ Lgt. Armor Plating destroyed. 01767_ Lgt. Treads destroyed. 01767_ Lgt. Nuclear Core destroyed. 01767_ Assault Rifle destroyed. 01767_ Lgt. Treads destroyed. Map ----- +----------------------------------------------------+ | | | | | | | | | | | | | | | | | | | ?????????????????????????????????????????????????? | | ?????????????????????????????????????????????????? | | ??????????????????????????????????????####???###?? | | ???????????????###???????????????????## #### ### | | ??????????????## ####???????????##### ## # | | ??????????????# ##??????????# | | ??????????????# ####???????# | | ???????????????# ###?????# ### | | ??????????????## ##????# #?## < # | | ?????????????## #????# #??## ## | | ????????????## """ ##???# #???### # ##? | | ????????????# ## """ ##??# #?????# ####?? | | ????????????# #### """ ##?# #?????# #????? | | ????????????## #### #?# #?????# #????? | | ?????????????## ## d #?# #?????# #????# | | ??????????????# d % #?# #?????# #????# | | ??????????????## @ = #?# #?????# #????# | | ???????????????## ### ##????# ###### | | ????????????????## ## ##???# | | ?????????????????# #???#### ### | | ?????????????????# # ### #??# ### | | ?????????????????# !## ## #?# ### | | ?????????????????# ## ## ### | | ?????????????????# |### #### ###### ####?# | | ?????????????????# ## #??## ##?????# #????? | | ?????????????????# # ???#####??????? ##????? | | ?????????????????## ??????????????? #?????? | | ??????????????????# """ ???????????????#?????? | | ?????????????????? """ ????????????????????? | | ?????????????????? """ ???????????????????? | | ?????????????????? ### ??????????????????? | | ?????????????????? ##?? ??????????????????? | | ?????????????????? ??#????????????????????????? | | ??????????????????# ???????????????????????????? | | ???????????????????# ???????????????????????????? | | ????????????????????##???????????????????????????? | | ?????????????????????????????????????????????????? | | ?????????????????????????????????????????????????? | | ?????????????????????????????????????????????????? | | ?????????????????????????????????????????????????? | | ?????????????????????????????????????????????????? | +----------------------------------------------------+ Best States ------------- Heat Dissipation 25 Energy Generation 14 Energy Capacity 160 Matter Stores 246 Matter Capacity 300 Sight Range 16 Terrain Scan Density 10 Armor Coverage 150 Evasion (%) 40 Targeting Accuracy 5 Recoil Reduction 2 Item Schematics ----------------- Huge Storage Unit | -10/Materials | Hacked Hcp. Storage Unit | -10/Materials | Hacked Robot Schematics ------------------ None Fabricated ------------ Nothing Repaired ---------- Nothing Alien Tech Used ----------------- None Achievements -------------- None Challenges ------------ None Game ------ Seed GaussGravityLeg Manual? 0 Play Time 00:10:32 Cumulative 195.9 hours Start 2025.09.13 @ 22:33:49 End 2025.09.13 @ 22:42:05 Sessions 1 Manual Loads 0 Difficulty Rogue Special Mode None Game No. 93 Rogue 93 Adventurer 0 Explorer 0 Win Type - Total 18 Types 6/2/4/1/1/0/0/1/1/2 Lore% 74 Gallery% 72 Achievement% 67 Wizard Run 0 Options --------- Layout 0 ASCII 0 Keyboard 1 Movement Vi Keybinds 0 Fullscreen 2 Font 18/SmallcapsGlow Map View 76x50 Zoom Use 0% Tactical HUD 1 Map Filters NONE Filters NONE Steam 1 RUN: cf6c7785-c434-4ce5-993f-3137c876de7d